[Event "FIDE WSTC-50-65 2022"]
[Site "Acqui Terme"]
[Date "2022.06.24"]
[Round "5.10"]
[White "Boudre, Jean-Pierre"]
[Black "Littlewood, Paul E"]
[Result "1/2-1/2"]
[ECO "B30"]
[WhiteElo "2265"]
[BlackElo "2347"]
[Annotator "TA"]
[PlyCount "101"]
[EventDate "2022.06.20"]
[EventType "team-tourn"]
[EventCountry "ITA"]
[SourceTitle "playchess.com"]
[Source "ChessBase"]
[SourceQuality "1"]
[TimeControl "40/5400+30:1800+30"]

{[%evp 18,101,10,13,16,16,16,16,16,16,18,11,12,8,44,9,10,8,38,0,20,29,33,20,14,8,70,49,75,72,77,81,82,83,81,79,81,79,79,85,70,47,56,50,60,50,54,52,43,0,0,0,0,0,0,0,0,-8,-8,-14,-14,-14,-14,-27,-27,-30,-29,-58,-58,-58,-58,-58,-58,-58,-58,-66,0,0,0,0,0,0,0,-8,-8,-8]} 1. e4 {[%emt 0:01:00]} c5 {[%emt 0:01:00]} 2. Nf3 {[%emt 0:00:00]} Nc6 {[%emt 0:00:30]} 3. Bb5 {[%emt 0:00:00]} e6 {[%emt 0:02:30]} 4. Bxc6 {[%emt 0:02:30]} bxc6 {[%emt 0:00:30]} 5. O-O {[%emt 0:02:30]} Ne7 {[%emt 0:05:30]} 6. b3 {[%emt 0:00:30]} Ng6 {[%emt 0:03:30]} 7. Bb2 {[%emt 0:01:30]} f6 {[%emt 0:00:00]} 8. e5 {[%emt 0:11:30]} Be7 {[%emt 0:00:00]} 9. d3 {[%emt 0:04:30]} O-O {[%emt 0:04:30]} 10. Nbd2 {[%emt 0:00:30]} fxe5 {[%emt 0:04:30] B30: Sicilian: 2...Nc6 3 Bb5, lines without ...g6.} 11. Nxe5 {[%emt 0:00:30]} Nxe5 {[%emt 0:00:30]} 12. Bxe5 {[%emt 0:00:30]} d6 {[%emt 0:00:30]} 13. Bg3 {[%emt 0:01:30]} e5 {[%emt 0:01:30]} 14. Qe2 {[%emt 0:00:30]} Bg5 {[%emt 0:13:30]} 15. Rae1 {[%emt 0:07:30] [#]} Bf5 $146 {[%emt 0:02:30]} ({Predecessor:} 15... a5 16. Ne4 Bh6 17. f3 a4 18. Bf2 Bf5 19. Nc3 axb3 20. axb3 Bg5 21. Ra1 Qc7 {½-½ (33) Gnilka,T (2350)-Bolz,J (2345) ICCF email 2018}) 16. Ne4 {[%emt 0:12:30]} Bh6 {[%emt 0:00:30]} 17. f4 {[%emt 0:10:30]} d5 {[%emt 0:06:30] [#] White must now prevent ...exf4.} (17... Qd7 $5 {[%cal Ra8e8]}) 18. Nd2 {[%emt 0:11:30]} (18. Ng5 $5 {[%cal Re2e5]}) 18... Qa5 {[%emt 0:03:30]} 19. Nf3 {[%emt 0:02:30]} exf4 {[%emt 0:05:30]} 20. Bf2 {[%emt 0:00:30]} Qc3 {[%emt 0:13:30][%cal Oc5c4]} 21. Nh4 {[%emt 0:06:30]} Bd7 {[%emt 0:09:30]} (21... f3 $11 22. Nxf3 Bg4) 22. Qe7 $14 {[%emt 0:00:30][%csl LRc5,LRd7]} Rf7 {[%emt 0:01:30]} 23. Qxc5 {[%emt 0:00:30]} Qxc5 {[%emt 0:00:30]} 24. Bxc5 {[%emt 0:00:00]} Bg5 {[%emt 0:02:54]} 25. Nf3 {[%emt 0:00:00]} Bf6 {[%emt 0:00:11]} 26. Ne5 {[%emt 0:00:30]} Bxe5 {[%emt 0:00:12]} 27. Rxe5 {[%emt 0:00:30]} a6 {[%emt 0:01:11]} 28. Kf2 {[%emt 0:07:22]} Re8 {[%emt 0:01:19]} 29. Rfe1 {[%emt 0:02:39]} Rxe5 {[%emt 0:00:31]} 30. Rxe5 {[%emt 0:00:09][%mdl 4096] Endgame KRB-KRB} h6 {[%emt 0:00:45]} 31. h4 {[%emt 0:00:27]} Bg4 {[%emt 0:04:53]} 32. Ke1 {[%emt 0:07:24]} Kh7 {[%emt 0:02:07]} 33. Re7 {[%emt 0:05:18]} Rxe7+ {[%emt 0:00:33]} 34. Bxe7 $11 {[%emt 0:00:03] KB-KB} Kg6 {[%emt 0:00:57]} 35. Bd6 {[%emt 0:01:26]} Kf5 {[%emt 0:00:16]} 36. Bf8 {[%emt 0:00:38]} g5 {[%emt 0:00:57]} 37. Bxh6 {[%emt 0:00:20]} gxh4 {[%emt 0:00:08]} 38. Bf8 {[%emt 0:00:01]} f3 {[%emt 0:01:26]} 39. gxf3 {[%emt 0:00:38]} Bxf3 {[%emt 0:00:09]} 40. Bd6 {[%emt 0:00:00]} d4 {[%emt 0:00:00]} 41. b4 {[%emt 0:20:35]} h3 {[%emt 0:06:31]} 42. Bh2 {[%emt 0:04:19]} Kg4 {[%emt 0:04:30]} 43. a3 {[%emt 0:02:07]} Bd5 {[%emt 0:02:30]} 44. Kf2 {[%emt 0:00:14]} Ba2 {[%emt 0:00:30]} 45. Be5 {[%emt 0:00:34]} Bb1 {[%emt 0:00:30]} 46. Bxd4 {[%emt 0:00:39]} h2 {[%emt 0:01:30]} (46... Bxc2 $15 47. Kg1 Bb1) 47. Kg2 {[%emt 0:00:06] The position is equal.} Bxc2 {[%emt 0:00:00]} 48. Kxh2 {[%emt 0:00:06]} Kf3 {[%emt 0:00:00]} 49. Bc5 {[%emt 0:00:34]} Bxd3 {[%emt 0:00:30]} 50. Kg1 {[%emt 0:00:04]} Bb5 {[%emt 0:01:30]} 51. Bb6 {Weighted Error Value: White=0.06 (flawless) /Black=0.08 (flawless)} 1/2-1/2

[Event "FIDE WSTC-50-65 2022"]
[Site "Acqui Terme"]
[Date "2022.06.24"]
[Round "5.11"]
[White "Stebbings, Anthony J"]
[Black "Giffard, Nicolas"]
[Result "1-0"]
[ECO "E41"]
[WhiteElo "2297"]
[BlackElo "2236"]
[Annotator "NA RC"]
[PlyCount "65"]
[EventDate "2022.06.20"]
[EventType "team-tourn"]
[EventCountry "ITA"]
[SourceTitle "playchess.com"]
[Source "ChessBase"]
[SourceQuality "1"]
[TimeControl "40/5400+30:1800+30"]

1. d4 {[%emt 0:01:00]} Nf6 {[%emt 0:01:00]} 2. c4 {[%emt 0:00:00]} e6 {[%emt 0:00:30]} 3. Nc3 {[%emt 0:00:00]} Bb4 {[%emt 0:00:30]} 4. e3 {[%emt 0:00:00]} Bxc3+ {[%emt 0:00:00]} 5. bxc3 {[%emt 0:00:00]} c5 {[%emt 0:00:00]} 6. Bd3 {[%emt 0:00:30]} Nc6 {[%emt 0:00:30]} 7. Nf3 {[%emt 0:04:30]} d6 {[%emt 0:00:30]} 8. O-O {[%emt 0:03:30]} e5 {[%emt 0:00:30]} 9. d5 {[%emt 0:00:30]} Ne7 {[%emt 0:00:30]} 10. Nd2 {[%emt 0:08:30]} Ng6 {[%emt 0:00:00]} 11. f4 {[%emt 0:12:30]} exf4 {[%emt 0:00:00]} 12. exf4 {[%emt 0:00:30]} O-O {[%emt 0:01:30]} 13. Nf3 {[%emt 0:03:30]} Re8 {[%emt 0:03:30]} 14. Bd2 {[%emt 0:06:30]} Bg4 {[%emt 0:04:30]} 15. h3 {[%emt 0:03:30]} Bxf3 {[%emt 0:01:30]} 16. Qxf3 {[%emt 0:01:30]} Qc7 {[%emt 0:06:30]} 17. g4 {[%emt 0:05:30]} b5 {[%emt 0:03:30]} 18. g5 {[%emt 0:07:30]} Nd7 {[%emt 0:08:30]} 19. Kh2 {[%emt 0:09:30]} Nb6 {[%emt 0:03:30]} 20. cxb5 {[%emt 0:00:30]} c4 {[%emt 0:00:30]} 21. Bxg6 {[%emt 0:05:30]} hxg6 {[%emt 0:00:30]} 22. Be3 {[%emt 0:00:30]} Qb7 {[%emt 0:01:30]} 23. Rad1 {[%emt 0:09:18]} Na4 {[%emt 0:03:30]} 24. Bd4 {[%emt 0:01:19]} Qxb5 {[%emt 0:01:30]} 25. f5 {[%emt 0:05:02]} gxf5 {[%emt 0:01:30]} 26. Qxf5 {[%emt 0:00:04]} Re2+ {[%emt 0:00:30]} 27. Kg3 {[%emt 0:00:20]} Qe8 {[%emt 0:00:30]} 28. Rf4 {[%emt 0:02:08]} Rb8 {[%emt 0:15:30]} 29. Rdf1 {[%emt 0:00:47]} Rb7 {[%emt 0:02:30]} 30. Rh4 {[%emt 0:00:20]} Rbb2 {[%emt 0:04:30]} 31. Qh7+ {[%emt 0:00:57]} Kf8 {[%emt 0:00:30]} 32. Qxg7+ {[%emt 0:00:34]} Ke7 {[%emt 0:00:00]} 33. Rh8 {[%emt 0:01:41]} 1-0

[Event "FIDE WSTC-50-65 2022"]
[Site "Acqui Terme"]
[Date "2022.06.24"]
[Round "5.12"]
[White "Berthelot, Yannick"]
[Black "Povah, Nigel E"]
[Result "1-0"]
[ECO "B48"]
[WhiteElo "2242"]
[BlackElo "2201"]
[Annotator "TA"]
[PlyCount "117"]
[EventDate "2022.06.20"]
[EventType "team-tourn"]
[EventCountry "ITA"]
[SourceTitle "playchess.com"]
[Source "ChessBase"]
[SourceQuality "1"]
[TimeControl "40/5400+30:1800+30"]

{[%evp 11,117,34,41,26,35,0,16,30,18,17,8,28,48,7,0,-19,-3,-22,-7,0,0,-2,-19,-11,-18,-22,0,0,0,0,0,13,29,35,27,28,64,48,53,32,41,30,52,22,22,31,64,60,57,61,78,77,77,87,257,252,224,37,129,-6,-7,-7,0,0,0,0,114,14,14,14,102,102,102,102,102,95,66,65,29974,29976,29976,29977,29977,29978,29977,29978,29978,29978,29978,29979,29979,29980,29980,29981,29981,29982,29981,29982,29989,29990,29990,29991,29991,29992,29992,29993,29995,29996]} 1. e4 {[%emt 0:01:00]} c5 {[%emt 0:01:00]} 2. Nf3 {[%emt 0:00:00]} Nc6 {[%emt 0:00:00]} 3. d4 {[%emt 0:00:00]} cxd4 {[%emt 0:00:00]} 4. Nxd4 {[%emt 0:00:30]} e6 {[%emt 0:00:30]} 5. Nc3 {[%emt 0:00:30]} Qc7 {[%emt 0:00:00]} 6. Be3 {[%emt 0:00:00]} a6 {[%emt 0:00:00]} 7. Qf3 {[%emt 0:01:00] 7.g4 is becoming the main line. B48: Sicilian: Taimanov: 5 Nc3 Qc7 6 Be3 a6 without Be2.} Nf6 {[%emt 0:04:30][%cal Of8a3]} 8. O-O-O {[%emt 0:04:30]} Nxd4 {[%emt 0:01:30]} 9. Bxd4 {[%emt 0:04:30] The position is equal.} e5 {[%emt 0:00:30]} 10. Qg3 {[%emt 0:14:30]} d6 {[%emt 0:02:30]} 11. Be3 {[%emt 0:00:00]} b5 {[%emt 0:07:30] [#]} 12. f3 $146 {[%emt 0:02:00]} ({Predecessor:} 12. a3 Be6 13. Be2 Rb8 14. f4 b4 15. axb4 Rxb4 16. Rhf1 Qa5 17. Bd3 Rxb2 18. Kxb2 {1-0 (29) Aravindh,C (2641)-Panarin,M (2562) Chess.com INT 2020}) 12... b4 {[%emt 0:03:30]} 13. Nd5 {[%emt 0:16:30]} Nxd5 {[%emt 0:00:30]} 14. exd5 {[%emt 0:00:00]} ({Of course not} 14. Rxd5 Be6 15. Rd1 Rc8 $15) 14... Bf5 {[%emt 0:01:30][%csl Gf5][%cal Rc7c2]} 15. Bd3 {[%emt 0:01:00] Active counter play!} Bxd3 {[%emt 0:01:30]} 16. Rxd3 {[%emt 0:00:30]} Rc8 {[%emt 0:01:30][%csl Gc8][%cal Rc7c2]} 17. Qf2 {[%emt 0:07:30]} Be7 {[%emt 0:12:30]} 18. Kb1 {[%emt 0:03:30]} O-O {[%emt 0:07:30]} 19. Rb3 {[%emt 0:00:30]} Qc4 {[%emt 0:00:30]} 20. Qd2 {[%emt 0:04:30]} Rb8 {[%emt 0:17:30]} 21. c3 {[%emt 0:00:30]} a5 {[%emt 0:03:30]} 22. Rc1 {[%emt 0:04:30] Strongly threatening cxb4.} bxc3 {[%emt 0:08:30]} 23. Rcxc3 {[%emt 0:02:30]} Qf1+ {[%emt 0:01:30]} 24. Rc1 {[%emt 0:01:30]} Qa6 {[%emt 0:00:30]} 25. Qd3 $36 {[%emt 0:05:30][%mdl 2048] White fights for an advantage.} Qxd3+ {[%emt 0:03:30]} 26. Rxd3 {[%emt 0:00:00]} Rb7 {[%emt 0:07:11]} 27. Rcc3 {[%emt 0:09:57]} Rfb8 {[%emt 0:02:49]} 28. Rb3 {[%emt 0:00:49]} f5 {[%emt 0:04:01] [#]} 29. Ba7 $1 {[%emt 0:03:24]} Rxb3 {[%emt 0:01:09]} 30. Rxb3 $14 {[%emt 0:00:05][%mdl 4096] Endgame KRB-KRB} Rc8 {[%emt 0:05:17]} 31. Rb8 {[%emt 0:02:12]} Rxb8 {[%emt 0:00:05]} 32. Bxb8 $16 {[%emt 0:00:08] aiming for a4. KB-KB} Kf7 $2 {[%emt 0:00:38]} (32... a4 $16 {was necessary.}) 33. a4 $1 $18 {[%emt 0:03:23]} e4 {[%emt 0:01:35]} 34. f4 {[%emt 0:01:01]} (34. Bc7 $18) 34... g5 {[%emt 0:00:33]} (34... Ke8 $1 $14) 35. g3 {[%emt 0:00:35]} (35. fxg5 $16 {Threatens to win with h4.} Bxg5 36. Bc7) 35... gxf4 $11 {[%emt 0:01:09]} 36. gxf4 {[%emt 0:00:02]} Ke8 {[%emt 0:00:10]} 37. Bc7 {[%emt 0:00:50]} Bd8 {[%emt 0:01:06]} 38. Bxd6 {[%emt 0:06:36]} Bb6 {[%emt 0:00:20]} (38... Be7 $11 39. Be5 Kd7) 39. Kc2 {[%emt 0:00:47]} ({White must play} 39. b4 $1 $16) 39... Kd7 {[%emt 0:00:26]} 40. Be5 {[%emt 0:00:00]} Bg1 {[%emt 0:00:00] [#]} (40... Bf2 $1 $11 {keeps the balance.}) 41. h3 $1 $16 {[%emt 0:04:11]} Bc5 {[%emt 0:02:31]} 42. Bc3 {[%emt 0:09:30]} Kd6 {[%emt 0:13:07]} 43. Bxa5 {[%emt 0:02:16]} Kxd5 {[%emt 0:00:07]} 44. Bc7 $1 {[%emt 0:04:08]} Bd6 $2 {[%emt 0:01:54][%mdl 8192] Black is now going downhill.} (44... Bf2 $14) 45. Bxd6 {[%emt 0:00:45] White mates.} Kxd6 {[%emt 0:00:32] KP-KP} 46. Kc3 {[%emt 0:00:30]} Kc5 {[%emt 0:00:42]} 47. b4+ {[%emt 0:00:15][%cal Bb2b4,Bb4b5,Bb5b6][%mdl 32]} Kc6 {[%emt 0:04:47]} 48. Kc4 {[%emt 0:00:14]} Kb6 {[%emt 0:00:16]} 49. b5 {[%emt 0:00:36]} Ka5 {[%emt 0:00:58]} 50. Kb3 {[%emt 0:00:11]} Kb6 {[%emt 0:00:10]} 51. Kb4 {[%emt 0:00:08]} Kb7 {[%emt 0:02:17]} 52. a5 {[%emt 0:00:12]} Kc7 {[%emt 0:05:07]} 53. b6+ {[%emt 0:00:30]} Kc6 {[%emt 0:02:14]} 54. Kc4 {[%emt 0:00:08]} Kd6 {[%emt 0:01:01]} 55. a6 {[%emt 0:01:57]} Kc6 {[%emt 0:00:15]} 56. a7 {[%emt 0:00:01]} ({Not} 56. b7 Kc7 57. Kd4 Kb8 $18) 56... Kb7 {[%emt 0:00:07]} 57. Kc5 {[%emt 0:00:23]} e3 {[%emt 0:00:28] [#]} 58. Kd6 $1 {[%emt 0:00:15]} e2 {[%emt 0:01:13]} 59. a8=Q+ $1 {[%emt 0:00:00] Weighted Error Value: White=0.17 (very precise) /Black=0.28 (precise)} 1-0

[Event "FIDE WSTC-50-65 2022"]
[Site "Acqui Terme"]
[Date "2022.06.24"]
[Round "5.13"]
[White "Watzka, Horst"]
[Black "Knaak, Rainer"]
[Result "0-1"]
[ECO "C77"]
[WhiteElo "2174"]
[BlackElo "2479"]
[Annotator "TA"]
[PlyCount "84"]
[EventDate "2022.06.20"]
[EventType "team-tourn"]
[EventCountry "ITA"]
[SourceTitle "playchess.com"]
[Source "ChessBase"]
[SourceQuality "1"]
[TimeControl "40/5400+30:1800+30"]

{[%evp 16,84,30,27,27,15,19,17,9,1,23,0,7,4,40,0,12,6,20,0,0,-28,0,0,5,-7,-3,-5,-7,-4,-12,-62,-73,-64,-62,-61,-62,-66,-62,-73,-54,-71,-35,-55,-23,-34,0,0,0,-34,-23,-20,-9,-10,0,-49,-65,-44,-19,-69,-70,-86,-30,-197,-130,-156,-123,-227,-236,-602,-573]} 1. e4 {[%emt 0:01:00]} e5 {[%emt 0:01:00]} 2. Nf3 {[%emt 0:00:30]} Nc6 {[%emt 0:00:00]} 3. Bb5 {[%emt 0:01:30]} a6 {[%emt 0:00:00]} 4. Ba4 {[%emt 0:00:00]} Nf6 {[%emt 0:00:30]} 5. d3 {[%emt 0:02:00]} d6 {[%emt 0:01:30]} 6. c3 {[%emt 0:03:30]} g6 {[%emt 0:00:30]} 7. O-O {[%emt 0:00:30]} Bg7 {[%emt 0:00:00]} 8. Re1 {[%emt 0:01:30]} O-O {[%emt 0:00:00]} 9. h3 {[%emt 0:07:30]} Re8 {[%emt 0:00:30] C77: Ruy Lopez: 3...a6 4 Ba4 Nf6, unusual lines.} 10. Nbd2 {[%emt 0:00:30]} h6 {[%emt 0:00:30]} 11. Nf1 {[%emt 0:00:30]} b5 {[%emt 0:01:30] The position is equal.} 12. Bc2 {[%emt 0:02:30]} d5 {[%emt 0:06:30]} 13. Ng3 {[%emt 0:13:30]} dxe4 {[%emt 0:36:30] [#]} 14. dxe4 $146 {[%emt 0:00:00]} ({Predecessor:} 14. Nxe4 Nxe4 15. dxe4 Qxd1 16. Rxd1 Be6 17. Bb3 Rad8 18. Rxd8 Rxd8 19. Be3 Bxb3 20. axb3 {½-½ (36) Marino,M (2140)-Garcia Rodriguez,I (2216) ICCF email 2015}) 14... Be6 {[%emt 0:02:30]} 15. Bb3 {[%emt 0:05:00]} Qe7 {[%emt 0:04:30]} 16. Qe2 {[%emt 0:03:30]} Na5 {[%emt 0:02:30]} 17. Bxe6 {[%emt 0:04:30]} Qxe6 {[%emt 0:00:00]} 18. Be3 {[%emt 0:11:30]} Bf8 {[%emt 0:01:00]} 19. Nd2 {[%emt 0:02:30]} c5 {[%emt 0:02:30]} 20. a4 {[%emt 0:06:30]} c4 {[%emt 0:05:30]} 21. axb5 {[%emt 0:00:30]} axb5 {[%emt 0:00:00]} 22. Ra2 {[%emt 0:03:30] [#] Rea1 is the strong threat.} Nb7 {[%emt 0:02:00]} 23. Rea1 {[%emt 0:01:30]} (23. Rxa8 $11 Rxa8 24. b3) 23... Rxa2 $15 {[%emt 0:00:00]} 24. Rxa2 {[%emt 0:00:00]} Qc6 {[%emt 0:09:00]} 25. f3 {[%emt 0:07:00]} Nc5 {[%emt 0:02:30]} 26. Ra1 {[%emt 0:03:11]} Rd8 {[%emt 0:00:30]} 27. Rb1 {[%emt 0:03:40]} Rd3 {[%emt 0:06:03]} 28. Kh2 {[%emt 0:03:15]} Ne6 {[%emt 0:00:41]} 29. Ndf1 {[%emt 0:03:45]} Kh7 {[%emt 0:04:45]} 30. Nh1 {[%emt 0:01:03]} h5 {[%emt 0:03:14]} 31. Nf2 {[%emt 0:01:16]} Rd7 {[%emt 0:00:06]} 32. h4 {[%emt 0:01:34]} Nf4 {[%emt 0:04:18]} 33. Qc2 {[%emt 0:02:35]} Be7 {[%emt 0:01:15]} 34. g3 {[%emt 0:01:02]} Nd3 {[%emt 0:00:04]} 35. Nh3 {[%emt 0:01:52]} (35. b3 $11) 35... Ne8 {[%emt 0:01:22][%cal Bf6e8,Be8d6,Bd6c4][%mdl 32]} 36. b3 {[%emt 0:00:57]} Nd6 {[%emt 0:02:29]} 37. bxc4 {[%emt 0:00:37]} (37. Nf2 $11) 37... Nxc4 {[%emt 0:00:14]} 38. Rd1 $1 {[%emt 0:00:35]} Ndb2 {[%emt 0:00:50] 0x0.00086149d486dp-1022s more active pieces.} ({Black should try} 38... Ncb2 $17 39. Rb1 Nc4) 39. Rb1 {[%emt 0:00:43]} (39. Rxd7 $1 $11 Qxd7 40. Nf2) 39... Na4 $36 {[%emt 0:00:13][%mdl 2048] White is under strong pressure.} (39... Nxe3 $19 40. Nxe3 Nc4 41. Nxc4 Qxc4) 40. Qb3 $17 {[%emt 0:00:00]} Rb7 {[%emt 0:00:00]} 41. Rd1 {[%emt 0:02:55] [#]} (41. Bf2 $17) 41... Kg7 $1 $19 {[%emt 0:04:56]} 42. Rd3 $2 {[%emt 0:21:56]} (42. Nf2) 42... b4 {[%emt 0:08:30] Weighted Error Value: White=0.32/Black=0.13 (very precise)} 0-1

[Event "FIDE WSTC-50-65 2022"]
[Site "Acqui Terme"]
[Date "2022.06.24"]
[Round "5.14"]
[White "Chevelevitch, Evgueni"]
[Black "Dohr, Alexander"]
[Result "1-0"]
[ECO "B12"]
[WhiteElo "2369"]
[BlackElo "2139"]
[Annotator "TA"]
[PlyCount "26"]
[EventDate "2022.06.20"]
[EventType "team-tourn"]
[EventCountry "ITA"]
[SourceTitle "playchess.com"]
[Source "ChessBase"]
[SourceQuality "1"]
[TimeControl "40/5400+30:1800+30"]

{[%evp 9,26,18,22,0,28,19,43,51,123,125,311,308,342,333,501,522,460,454,1404]} 1. e4 {[%emt 0:01:00]} c6 {[%emt 0:01:00]} 2. d4 {[%emt 0:00:00]} d5 {[%emt 0:00:00]} 3. e5 {[%emt 0:00:00]} Bf5 {[%emt 0:03:00]} 4. h4 {[%emt 0:00:30]} h6 {[%emt 0:00:30]} 5. g4 {[%emt 0:00:30]} Bd7 {[%emt 0:01:30][%cal Oh6h5]} 6. Nc3 {[%emt 0:07:30] B12: Caro-Kann: Advance Variation.} e6 {[%emt 0:06:30]} 7. Be3 {[%emt 0:00:30]} h5 {[%emt 0:07:30]} 8. gxh5 {[%emt 0:00:30] [#] White is slightly better.} Be7 $146 {[%emt 0:00:00]} ({Black should play} 8... Qc7 $14) ({Predecessor:} 8... Ne7 9. Nf3 Nf5 10. Bg5 Qb6 11. Na4 Qa5+ 12. c3 Na6 13. a3 Rxh5 14. b4 Qc7 {1-0 (40) Shankland,S (2709)-Jobava,B (2603) Krasnaya Polyana 2021}) 9. Qg4 $16 {[%emt 0:02:30] White is more active.} Kf8 {[%emt 0:01:00]} (9... Bf8 $16) 10. Nf3 $18 {[%emt 0:00:30] [#] Threatens to win with Rg1.} Nh6 {[%emt 0:00:30]} 11. Bxh6 {[%emt 0:02:30]} Rxh6 {[%emt 0:00:30]} (11... gxh6 {might work better.} 12. Rg1 Ke8) 12. Rg1 {[%emt 0:01:30]} g6 {[%emt 0:01:30]} 13. Bd3 {[%emt 0:05:30][%cal Rh5g6]} Ke8 {[%emt 0:09:30] Black did not feel at home in the position after the opening.  Weighted Error Value: White=0.02 (flawless) /Black=0.64} (13... Kg7 $142 14. Ne2 Na6) 1-0

[Event "FIDE WSTC-50-65 2022"]
[Site "Acqui Terme"]
[Date "2022.06.24"]
[Round "5.15"]
[White "Kratschmer, Heinz"]
[Black "Kiefer, Gerhard"]
[Result "0-1"]
[ECO "D00"]
[WhiteElo "2062"]
[BlackElo "2224"]
[Annotator "NA RC"]
[PlyCount "76"]
[EventDate "2022.06.20"]
[EventType "team-tourn"]
[EventCountry "ITA"]
[SourceTitle "playchess.com"]
[Source "ChessBase"]
[SourceQuality "1"]
[TimeControl "40/5400+30:1800+30"]

1. d4 {[%emt 0:01:00]} Nf6 {[%emt 0:01:00]} 2. Nf3 {[%emt 0:00:00]} g6 {[%emt 0:00:00]} 3. Nc3 {[%emt 0:00:00]} d5 {[%emt 0:00:00]} 4. Bf4 {[%emt 0:00:00]} Bg7 {[%emt 0:00:00]} 5. Nb5 {[%emt 0:00:00]} Na6 {[%emt 0:00:00]} 6. e3 {[%emt 0:00:30]} O-O {[%emt 0:02:30]} 7. Be2 {[%emt 0:00:30]} c6 {[%emt 0:06:30]} 8. Nc3 {[%emt 0:00:30]} Nc7 {[%emt 0:00:00]} 9. Ne5 {[%emt 0:06:30]} Ne6 {[%emt 0:02:00]} 10. Bg3 {[%emt 0:00:30]} c5 {[%emt 0:06:30]} 11. Qd2 {[%emt 0:06:30]} cxd4 {[%emt 0:04:30]} 12. exd4 {[%emt 0:00:00]} h5 {[%emt 0:14:30]} 13. f3 {[%emt 0:08:00]} Qb6 {[%emt 0:07:30]} 14. O-O-O {[%emt 0:00:30]} Qa5 {[%emt 0:05:30]} 15. Kb1 {[%emt 0:00:30]} Nd7 {[%emt 0:00:30]} 16. f4 {[%emt 0:11:30]} Nxe5 {[%emt 0:09:30]} 17. fxe5 {[%emt 0:04:30]} Kh7 {[%emt 0:02:30]} 18. Bf2 {[%emt 0:00:30]} Bh6 {[%emt 0:02:30]} 19. Be3 {[%emt 0:00:30]} Bxe3 {[%emt 0:00:00]} 20. Qxe3 {[%emt 0:00:30]} Ng7 {[%emt 0:00:00]} 21. h3 {[%emt 0:04:30]} b5 {[%emt 0:05:30]} 22. Bf3 {[%emt 0:02:30]} b4 {[%emt 0:02:30]} 23. Nxd5 {[%emt 0:00:30]} Be6 {[%emt 0:00:30]} 24. c4 {[%emt 0:00:30]} bxc3 {[%emt 0:00:30]} 25. Nxc3 {[%emt 0:00:30]} Rab8 {[%emt 0:03:30]} 26. d5 {[%emt 0:04:30]} Rfc8 {[%emt 0:00:30]} 27. Ka1 {[%emt 0:02:30]} Rxb2 {[%emt 0:02:30]} 28. Kxb2 {[%emt 0:01:30]} Qb4+ {[%emt 0:00:30]} 29. Ka1 {[%emt 0:00:30]} Rxc3 {[%emt 0:00:00]} 30. Rd3 {[%emt 0:00:30]} Rc2 {[%emt 0:08:16]} 31. Rb3 {[%emt 0:02:30]} Qa4 {[%emt 0:00:08]} 32. Ra3 {[%emt 0:00:30]} Qc4 {[%emt 0:00:05]} 33. dxe6 {[%emt 0:00:30]} Nf5 {[%emt 0:00:05]} 34. Qd3 {[%emt 0:06:30]} Qc5 {[%emt 0:04:47]} 35. exf7 {[%emt 0:01:30]} Qxe5+ {[%emt 0:01:26]} 36. Rc3 {[%emt 0:00:30]} Rxc3 {[%emt 0:00:17]} 37. Qxc3 {[%emt 0:01:30]} Qxc3+ {[%emt 0:00:10]} 38. Kb1 {[%emt 0:00:00]} Kg7 {[%emt 0:00:20]} 0-1